Cogmind - Beta 14 @@@ ROGUE MODE // 2024.08.14 @ 21:05:53 Player: Anja Psicher Result: Destroyed by G-73 Enforcer with Phase Gun Performance ------------- Evolutions (8) 4000 Regions Visited (13) 2600 Robots Destroyed (95) 475 Value Destroyed (2686) 2686 Prototype IDs (47) 940 Alien Tech Used (0) 0 Bonus (243) 243 TOTAL SCORE: 10944 Bonus ------- High Alert Combat Kills 27 Follower Combat Kills 91 Aligned with FarCom 300 Friendly Fire -175 Cogmind --------- Core Integrity 0/1450 Matter 43/300 Energy 99/100 System Corruption 16% Temperature Cool (9) Movement Core (50) Location -2/Research Parts ------- > --- POWER (2) -------- (None) > --- PROPULSION (6) --- (None) > --- UTILITY (13) ----- Spectral Analyzer Improved Hacking Suite > --- WEAPON (2) ------- (None) > --- INVENTORY (5) ---- Improved Hacking Suite Advanced Field Recycling Unit (0) Enhanced Quantum Rifle Enhanced Nova Cannon Enhanced Force Lance Peak State ------------ > --- POWER ------------ Micro Antimatter Reactor Light Quantum Reactor > --- PROPULSION ------- Flying Fortress v7 Impulse Thruster Array > --- UTILITY ---------- Improved Heat Sink Medium Storage Unit Spectral Analyzer Experimental Transmission Jammer Advanced ECM Suite Improved Reaction Control System Hardlight Generator Improved Hacking Suite Improved Hacking Suite Improved Hacking Suite System Shield Improved System Shield Advanced System Shield > --- WEAPON ----------- Vibroblade Enhanced Force Lance > --- INVENTORY -------- Light Antimatter Reactor Field Propulsion Drive Field Propulsion Array Q-thruster Quantum Rifle Enhanced Quantum Rifle Nova Cannon Enhanced Nova Cannon Rocket Array [Rating: 152] Favorites ----------- Power Improved Ion Engine Engine Improved Ion Engine Power Core Micro Nuclear Core Reactor Micro Antimatter Reactor Propulsion Wheel Treads Improved Treads Wheel Wheel Flight Unit Flying Fortress v7 Utility Improved Heat Sink Device Improved Heat Sink Storage Medium Storage Unit Processor Targeting Computer Hackware Improved Hacking Suite Protection Hardened Medium Armor Plating Weapon Cooled Particle Cannon Energy Gun Beam Rifle Energy Cannon Cooled Particle Cannon Ballistic Gun Gauss Rifle Launcher Rocket Array Special Weapon Mining Laser Impact Weapon Maul Slashing Weapon Scythe Piercing Weapon Enhanced Force Lance Build | -11 -10 -10 -9 -9 -9 -8 -8 -7 -6 -5 -4 -3 -2 ------- Run | Yrd Mat Min Mat Min Exi Min Mat Fac Fac Fac Fac Res Res Slots Evolved 16 | . . . 2 . . . 2 2 2 2 2 2 2 Power 1 | . . . . . . . . . . . . 1 . Propulsion 4 | . . . . . . . . 2 1 . . . 1 Utility 11 | . . . 2 . . . 2 . 1 2 2 1 1 Weapon . | . . . . . . . . . . . . . . Parts Attached 176 | 8 12 16 19 4 . 7 11 20 19 3 6 14 37 Power 16 | 1 . . 1 . . 1 2 1 1 1 . 2 6 Engine 7 | 1 . . 1 . . 1 2 . 1 . . 1 . Core 3 | . . . . . . . . 1 . 1 . . 1 Reactor 6 | . . . . . . . . . . . . 1 5 Propulsion 27 | 3 4 . 3 . . . 1 6 3 . . 1 6 Treads 2 | . 1 . 1 . . . . . . . . . . Leg . | . . . . . . . . . . . . . . Wheel 13 | 3 3 . 2 . . . 1 4 . . . . . Hover . | . . . . . . . . . . . . . . Flight 12 | . . . . . . . . 2 3 . . 1 6 Utility 62 | 2 2 8 7 3 . 3 3 2 7 2 3 9 11 Device 29 | 1 . 7 3 3 . 2 . . 1 1 . 6 5 Storage 6 | 1 2 . . . . . 1 . 2 . . . . Processor 5 | . . . 1 . . . . 1 . . . 1 2 Hackware 10 | . . . . . . . 2 . 1 1 2 1 3 Protection 12 | . . 1 3 . . 1 . 1 3 . 1 1 1 Artifact . | . . . . . . . . . . . . . . Weapon 71 | 2 6 8 8 1 . 3 5 11 8 . 3 2 14 Energy Gun 15 | 1 1 4 5 1 . 1 . 1 . . . . 1 Energy Cannon 12 | . . . . . . . . 5 4 . 1 . 2 Ballistic Gun 7 | 1 2 1 . . . . 2 1 . . . . . Ballistic Cannon . | . . . . . . . . . . . . . . Launcher 16 | . 3 2 2 . . 2 . 1 . . 1 . 5 Special Weapon 1 | . . 1 . . . . . . . . . . . Impact Weapon 5 | . . . 1 . . . 3 1 . . . . . Slashing Weapon 8 | . . . . . . . . 2 4 . 1 1 . Piercing Weapon 7 | . . . . . . . . . . . . 1 6 Special Melee Weapon . | . . . . . . . . . . . . . . Unidentified Prototypes 10 | . . 1 . . . . . 3 1 . . 2 3 Parts Lost 33 | . 1 . 1 . . 1 1 1 1 . 1 4 22 Power 5 | . . . . . . . 1 . . . . . 4 Propulsion 7 | . 1 . . . . . . 1 1 . . . 4 Utility 18 | . . . 1 . . . . . . . 1 4 12 Weapon 3 | . . . . . . 1 . . . . . . 2 Highest Loss Streak 7 | . 1 . 1 . . 1 1 1 1 . 1 4 7 To Critical Strikes 1 | . . . . . . . . . . . . . 1 Average Slot Usage (%) 92 | . 99 100 98 100 100 100 99 98 80 81 84 82 73 Engine 6 | . 14 14 11 11 11 11 8 4 3 2 . 1 . Core 1 | . . . . . . . . 2 2 2 5 4 . Reactor 1 | . . . . . . . . . . . . 2 6 Wheel 16 | . 25 28 19 22 22 22 18 28 . . . . . Flight 3 | . . . . . . . . . 13 11 10 9 7 Device 10 | . 14 13 11 11 11 11 9 7 7 11 10 9 15 Storage 8 | . 14 14 11 11 11 11 9 7 6 5 5 4 3 Processor 6 | . . . 10 11 11 11 9 7 6 5 5 8 6 Hackware 11 | . . . . . . . 18 15 13 16 26 22 25 Protection 6 | . . . 10 11 11 11 9 7 11 11 10 8 . Energy Gun 8 | . 14 24 21 20 22 21 5 . . . . . . Energy Cannon 3 | . . . . . . . . 10 7 5 5 1 . Ballistic Gun 1 | . 13 2 . . . . 6 1 . . . . . Slashing Weapon 1 | . . . . . . . . . 5 5 4 4 2 Peak Build Rating 152 | 8 9 18 21 20 20 27 36 47 75 86 97 128 152 Average Rating 52 | 5 8 9 17 17 19 24 32 40 72 85 95 116 130 On Entrance 40 | . 8 8 11 17 18 20 27 32 46 75 86 95 120 Naked Turns . | . . . . . . . . . . . . . . Heaviest Build 110 | 14 31 33 39 39 39 46 107 110 45 46 51 58 63 Greatest Support 66 | 32 32 20 23 20 20 20 20 40 56 56 56 58 66 Greatest Overweight (x) 5 | . 1 1 1 1 1 2 5 5 . . . . . Average Overweight (x) . | . . 1 1 1 1 1 4 2 . . . . . Largest Inventory Capacity 25 | 8 15 15 15 15 15 15 25 25 25 10 10 10 10 Average Capacity 15 | 7 9 15 15 15 15 15 23 25 10 10 10 10 9 Most Carried 25 | 8 12 15 15 15 15 15 25 25 25 9 8 10 10 Average Carried 14 | 4 8 13 14 14 14 14 19 24 10 8 6 9 8 Final Capacity 25 | 8 15 15 15 15 15 15 25 25 10 10 10 10 5 Final Carried 25 | 8 12 15 15 15 15 15 25 25 10 9 6 8 5 Class Distribution -------------------- 31% | Scavenger-Mutant 30% | Hacker-Mutant 20% | Mutant 12% | Wizard-Mutant Dominant Class ---------------- Mutant | -10/Materials Mutant | -10/Mines Mutant | -9/Materials Scavenger-Mutant | -9/Mines Scavenger-Mutant | -9/Exiles Scavenger-Mutant | -8/Mines Hacker-Mutant | -8/Materials Scavenger-Mutant | -7/Factory Hacker-Mutant | -6/Factory Hacker-Mutant | -5/Factory Hacker-Mutant | -4/Factory Hacker-Scout | -3/Research Wizard-Mutant | -2/Research Resources | -11 -10 -10 -9 -9 -9 -8 -8 -7 -6 -5 -4 -3 -2 ----------- Run | Yrd Mat Min Mat Min Exi Min Mat Fac Fac Fac Fac Res Res Matter Collected 2239 | 295 80 287 240 66 . 76 125 211 180 . . 217 462 Remotely . | . . . . . . . . . . . . . . Salvage Created 3140 | 118 214 220 491 40 . 60 179 663 277 . 97 129 652 Parts 215 | 15 21 18 34 3 . 5 14 40 16 . 6 12 31 Haulers Intercepted 2 | . . . . . . . . 1 . . . . 1 Recyclers Shooed 3 | . . . . . . . . 1 . . 1 . 1 Parts Field Recycled . | . . . . . . . . . . . . . . Retrieved Matter . | . . . . . . . . . . . . . . Parts Self-Destructed . | . . . . . . . . . . . . . . Prevented . | . . . . . . . . . . . . . . Kills | -11 -10 -10 -9 -9 -9 -8 -8 -7 -6 -5 -4 -3 -2 ------- Run | Yrd Mat Min Mat Min Exi Min Mat Fac Fac Fac Fac Res Res Combat Hostiles Destroyed 54 | . 4 8 14 1 . 5 3 6 4 . 2 1 6 Melee 2 | . . . . . . . . . . . . 1 1 Guns 21 | . 1 3 12 1 . 1 3 . . . . . . Cannons 11 | . . . . . . . . 6 4 . . . 1 AOE 19 | . 3 5 1 . . 4 . . . . 2 . 4 Classes Destroyed 14 | 2 5 . 2 . . 1 . 2 1 . . . 1 Worker 9 | . 1 3 . . . . 1 1 . . . . 3 Builder 6 | . 1 1 . . . . . 2 . . 2 . . Tunneler 6 | 3 . 1 . . . . . . . . 1 . 1 Hauler 2 | . . . . . . . . 1 . . . . 1 Recycler 7 | 1 1 . . . . . . 3 . . . . 2 Operator 4 | . . . 1 . . . . 1 . . . 2 . Watcher 7 | . 2 . 1 . . . . . 2 . . . 2 Swarmer 18 | . 3 6 5 . . 4 . . . . . . . Cutter 1 | . . . . . . . . . . . . . 1 Grunt 10 | . 1 2 4 1 . . . . . . 2 . . Brawler 1 | . . . . . . . . . 1 . . . . Sentry 10 | . . . 5 . . . 3 1 1 . . . . Hunter 3 | . . . . . . 1 . 2 . . . . . Programmer 11 | . . . . . . . . 3 2 . . 1 5 Best Kill Streak 8 | 3 3 3 8 1 . 4 3 2 1 . 5 1 7 Combat Bots Only 7 | . 3 3 7 1 . 4 2 2 1 . 2 1 4 Max Kills in Single Turn 4 | 1 3 3 1 1 . 4 1 1 1 . 2 1 2 Gunslinging . | . . . . . . . . . . . . . . Exploded 4 | . 3 3 1 . . 4 . . . . 1 . 1 Melee 1 | . . . . . . . . . . . . 1 1 Uniques/NPCs Destroyed . | . . . . . . . . . . . . . . Combat | -11 -10 -10 -9 -9 -9 -8 -8 -7 -6 -5 -4 -3 -2 -------- Run | Yrd Mat Min Mat Min Exi Min Mat Fac Fac Fac Fac Res Res Hostile Shots Fired 580 | . 15 12 55 . . 12 4 83 39 2 27 52 279 Missed 261 | . 1 . 11 . . 4 1 39 20 1 15 30 139 Damage Taken 5958 | . 272 128 459 . . 75 48 378 226 20 276 573 3503 Core 1868 | . 96 7 113 . . . . 48 22 . 17 109 1456 Absorbed by Shields 264 | . . . . . . . . . 16 . . 28 220 Redirected to Shielding 243 | . . . . . . . . . 49 . 84 55 55 Core Remaining (%) 89 | 100 . 58 . . . 71 100 93 97 100 98 91 . Volleys Fired 166 | 5 16 23 32 1 . 4 5 33 19 1 6 1 20 Largest 2 | 2 2 2 2 2 . 2 2 2 2 1 2 1 2 Hottest 185 | 60 85 115 131 131 . 131 103 180 90 90 60 90 185 Shots Fired 277 | 10 27 37 59 2 . 7 10 60 31 1 9 1 23 Gun 139 | 10 22 28 56 2 . 6 10 4 . . . . 1 Cannon 101 | . . . . . . . . 56 31 1 7 1 5 Launcher 32 | . 5 4 3 . . 1 . . . . 2 . 17 Special 5 | . . 5 . . . . . . . . . . . Kinetic 27 | 5 11 2 . . . . 5 4 . . . . . Thermal 218 | 5 11 31 56 2 . 6 5 56 31 1 7 1 6 Explosive 32 | . 5 4 3 . . 1 . . . . 2 . 17 Electromagnetic . | . . . . . . . . . . . . . . Robot Hit Streak 10 | 6 6 8 10 4 . 5 7 9 8 . 4 . 3 Robot Miss Streak 7 | 1 3 5 7 . . 1 2 3 2 . 3 . 1 Penetration Max . | . . . . . . . . . . . . . . Secondary Targets . | . . . . . . . . . . . . . . Shots Hit Robots 180 | 7 14 13 41 1 . 5 7 37 24 . 5 3 23 Core Hits 143 | 4 11 14 30 1 . 6 4 14 8 . 12 2 37 Critical Kills . | . . . . . . . . . . . . . . Critical Parts Destroyed 1 | . . . 1 . . . . . . . . . . Critical Strikes 9 | . 1 1 3 . . 1 1 . . . . . 2 Burn 6 | . 1 1 2 . . 1 1 . . . . . . Smash 1 | . . . 1 . . . . . . . . . . Impale 2 | . . . . . . . . . . . . . 2 Melee Attacks 151 | . . . 2 . . . 5 5 37 6 5 29 62 Impact 10 | . . . 2 . . . 5 3 . . . . . Slashing 85 | . . . . . . . . 2 37 6 5 24 11 Piercing 56 | . . . . . . . . . . . . 5 51 Sneak Attacks 7 | . . . . . . . . 2 1 . . 2 2 Combat Hostiles . | . . . . . . . . . . . . . . Follow-up Attacks 4 | . . . . . . . . . . . . . 4 Damage Inflicted 7899 | 80 406 399 985 15 . 278 149 1381 791 . 730 287 2398 Guns 1471 | 80 179 187 692 15 . 92 149 77 . . . . . Cannons 1834 | . . . . . . . . 1149 482 . 107 . 96 Explosions 2580 | . 227 212 257 . . 186 . . . . 623 . 1075 Melee 2004 | . . . 36 . . . . 155 309 . . 287 1217 Ramming 10 | . . . . . . . . . . . . . 10 Kinetic 257 | 38 78 . . . . . 64 77 . . . . . Thermal 3119 | 42 172 187 692 15 . 92 85 1149 482 . 107 . 96 Explosive 2509 | . 156 212 257 . . 186 . . . . 623 . 1075 Electromagnetic . | . . . . . . . . . . . . . . Impact 36 | . . . 36 . . . . . . . . . . Slashing 917 | . . . . . . . . 155 309 . . 232 221 Piercing 1051 | . . . . . . . . . . . . 55 996 Highest Corruption 16 | . 1 1 . . . . . . . . . . 16 Average Corruption 5 | . 1 1 . . . . . . . . . . 8 Corruption Purged . | . . . . . . . . . . . . . . Corruption Blocked . | . . . . . . . . . . . . . . Effects 42 | . . 3 . . . . . . . . . . 39 Message Errors 5 | . . . . . . . . . . . . . 5 Matter Fused 12 | . . 1 . . . . . . . . . . 11 Heat Flow Errors 2 | . . . . . . . . . . . . . 2 Energy Discharges 4 | . . 2 . . . . . . . . . . 2 Parts Rejected 1 | . . . . . . . . . . . . . 1 Data Loss (minor) 5 | . . . . . . . . . . . . . 5 Data Loss (major) 2 | . . . . . . . . . . . . . 2 Misfires 2 | . . . . . . . . . . . . . 2 Alerts 1 | . . . . . . . . . . . . . 1 Misdirections 8 | . . . . . . . . . . . . . 8 Overload Shots 23 | . . . . . . . . 15 6 1 . 1 . Effects 2 | . . . . . . . . 1 1 . . . . Energy Bleed 1 | . . . . . . . . . 1 . . . . Short Circuit 1 | . . . . . . . . 1 . . . . . Overflow Damage 709 | . 31 . 68 . . . . 163 70 . 55 107 215 Projectiles 107 | . . . . . . . . 73 19 . . . 15 Explosions 118 | . 31 . 32 . . . . . . . 55 . . Melee 484 | . . . 36 . . . . 90 51 . . 107 200 Knockbacks . | . . . . . . . . . . . . . . Impact . | . . . . . . . . . . . . . . Kinetic . | . . . . . . . . . . . . . . Secondary . | . . . . . . . . . . . . . . Self-Inflicted Damage 337 | . 111 32 18 . . . . . . . 34 . 142 Shots 12 | . 2 1 1 . . . . . . . 2 . 6 Rammed 2 | . . . . . . . . . . . . . 2 Targets Rammed 2 | . . . . . . . . . . . . . 2 Kicked . | . . . . . . . . . . . . . . Crushed . | . . . . . . . . . . . . . . Highest Temperature 244 | . 96 122 242 72 . 99 17 108 28 22 11 22 244 Average Temperature 59 | . 44 54 80 37 . 50 7 28 14 16 7 16 87 Received Heat Transfer 711 | . 93 18 147 . . . 18 30 24 9 115 14 243 Effects 3 | . . . 3 . . . . . . . . . . Interference 3 | . . . 3 . . . . . . . . . . Siege Activations . | . . . . . . . . . . . . . . Robots Corrupted 1 | . . . 1 . . . . . . . . . . Combat Hostiles 1 | . . . 1 . . . . . . . . . . Parts Fried . | . . . . . . . . . . . . . . Impact Corruptions 1 | . . . 1 . . . . . . . . . . Robots Melted . | . . . . . . . . . . . . . . Combat Hostiles . | . . . . . . . . . . . . . . Parts Melted 4 | . . 1 2 . . 1 . . . . . . . Heat Transferred 5205 | 100 360 592 1509 37 . 259 222 1312 592 . 148 . 74 Parts Sabotaged . | . . . . . . . . . . . . . . Parts Stolen . | . . . . . . . . . . . . . . Parts Stripped . | . . . . . . . . . . . . . . Power Chain Reactions . | . . . . . . . . . . . . . . Alert | -11 -10 -10 -9 -9 -9 -8 -8 -7 -6 -5 -4 -3 -2 ------- Run | Yrd Mat Min Mat Min Exi Min Mat Fac Fac Fac Fac Res Res Peak Influence 474 | 20 240 246 474 171 . 134 101 149 190 142 325 330 416 Initial 170 | . 13 53 95 151 . . . . 35 29 69 170 130 Average 116 | 6 111 99 241 111 . 101 40 46 63 62 113 242 241 Maximum Alert Level 2 | . 1 1 2 . . . . . . . 1 1 2 Low Security (%) 82 | 100 94 92 51 100 . 100 100 100 100 100 84 19 36 Level 1 14 | . 5 7 27 . . . . . . . 15 80 51 Level 2 2 | . . . 20 . . . . . . . . . 12 Level 3 . | . . . . . . . . . . . . . . Level 4 . | . . . . . . . . . . . . . . Level 5 . | . . . . . . . . . . . . . . High Security . | . . . . . . . . . . . . . . Max Security . | . . . . . . . . . . . . . . Squads Dispatched 29 | . 1 1 3 . . . 2 5 6 1 2 3 5 Investigation 7 | . 1 . . . . . . 1 3 1 1 . . Extermination 8 | . . . . . . . . 3 2 . . 1 2 Reinforcement 12 | . . . 3 . . . 2 1 . . 1 2 3 Assault 2 | . . 1 . . . . . . 1 . . . . Garrison . | . . . . . . . . . . . . . . Intercept . | . . . . . . . . . . . . . . Searches Triggered . | . . . . . . . . . . . . . . Construction Impeded 1 | . . . . . . . . . . . 1 . . Haulers Reinforced 1 | . . . . . . . . 1 . . . . . Active Scanning Responses . | . . . . . . . . . . . . . . Cargo Convoy Interrupts . | . . . . . . . . . . . . . . Stealth | -11 -10 -10 -9 -9 -9 -8 -8 -7 -6 -5 -4 -3 -2 --------- Run | Yrd Mat Min Mat Min Exi Min Mat Fac Fac Fac Fac Res Res Distress Signals 13 | . . . 2 . . . 1 . 5 1 . 2 2 Communications Jammed . | . . . . . . . . . . . . . . Distress Signals . | . . . . . . . . . . . . . . Times Spotted 191 | . 11 9 28 . . 5 3 11 16 3 5 23 77 Peak Tracking Total 19 | . 4 3 6 . . 4 2 2 7 5 4 13 19 Tactical Retreats 33 | . 1 1 3 . . . . 1 6 2 . 5 14 Traps | -11 -10 -10 -9 -9 -9 -8 -8 -7 -6 -5 -4 -3 -2 ------- Run | Yrd Mat Min Mat Min Exi Min Mat Fac Fac Fac Fac Res Res Traps Triggered 14 | . 1 . . . . . . 1 7 . . 2 3 Indirectly . | . . . . . . . . . . . . . . Trap Hack Attempts . | . . . . . . . . . . . . . . Triggered . | . . . . . . . . . . . . . . Disarmed . | . . . . . . . . . . . . . . Reprogrammed . | . . . . . . . . . . . . . . Reused . | . . . . . . . . . . . . . . Traps Extracted . | . . . . . . . . . . . . . . Installed . | . . . . . . . . . . . . . . Triggered . | . . . . . . . . . . . . . . Most Traps Carried 2 | . . . . 2 1 . . . . . . . . Machines | -11 -10 -10 -9 -9 -9 -8 -8 -7 -6 -5 -4 -3 -2 ---------- Run | Yrd Mat Min Mat Min Exi Min Mat Fac Fac Fac Fac Res Res Machines Disabled 15 | . 3 4 1 . . . 1 1 . . 4 1 . Max in Single Turn 2 | . 1 2 . . . . 1 1 . . 2 1 . Garrison Access 5 | . . . . . . . . . 3 . . . 2 Machines Repaired . | . . . . . . . . . . . . . . Machines Dismantled . | . . . . . . . . . . . . . . Machines Sabotaged . | . . . . . . . . . . . . . . Overloaded Fab Kills . | . . . . . . . . . . . . . . Hacking | -11 -10 -10 -9 -9 -9 -8 -8 -7 -6 -5 -4 -3 -2 --------- Run | Yrd Mat Min Mat Min Exi Min Mat Fac Fac Fac Fac Res Res Machines Accessed 59 | . 7 . 2 . 4 . 5 11 16 3 2 2 7 Terminals 42 | . 7 . 2 . . . 5 8 10 3 1 1 5 Fabricators 6 | . . . . . . . . 2 3 . 1 . . Repair Stations . | . . . . . . . . . . . . . . Recycling Units . | . . . . . . . . . . . . . . Scanalyzers 1 | . . . . . . . . 1 . . . . . Garrison Access 6 | . . . . . . . . . 3 . . 1 2 Total Hacks 192 | . 20 . 8 . 27 . 22 31 42 11 12 5 14 Successful 116 | . 11 . 2 . 27 . 13 18 22 6 9 1 7 Failed 76 | . 9 . 6 . . . 9 13 20 5 3 4 7 Catastrophic 15 | . 1 . . . . . 2 . 8 2 . . 2 Database Lockouts . | . . . . . . . . . . . . . . Manual 81 | . 9 . 4 . 1 . 13 13 19 9 5 . 8 Terminals 136 | . 20 . 8 . . . 22 24 30 11 9 3 9 Fabricators 12 | . . . . . . . . 3 6 . 3 . . Repair Stations . | . . . . . . . . . . . . . . Recycling Units . | . . . . . . . . . . . . . . Scanalyzers 4 | . . . . . . . . 4 . . . . . Garrison Access 13 | . . . . . . . . . 6 . . 2 5 Terminal Hacks 80 | . 9 . 1 . 27 . 10 7 9 5 6 1 5 Record 28 | . . . . . 26 . . . . . 2 . . Part Schematic 2 | . . . . . . . . . 1 . 1 . . Robot Analysis 4 | . 1 . . . . . 3 . . . . . . Prototype ID Bank 6 | . 1 . . . . . 1 2 2 . . . . Level Access Points 4 | . . . . . . . . . . 1 1 1 1 Branch Access Points 4 | . 1 . . . . . . 1 1 1 . . . Emergency Access Points 2 | . 2 . . . . . . . . . . . . Machine Index 1 | . . . . . . . . . . . . . 1 Terminal Index 3 | . . . . . . . 1 . . 1 1 . . Unreport Threat 9 | . . . 1 . . . 2 2 2 . . . 2 Locate Traps 4 | . . . . . . . 1 1 . 1 1 . . Dispatch Records 1 | . . . . . . . . . . . . . 1 Security Status 1 | . . . . . . . 1 . . . . . . Recall Investigation 1 | . . . . . . . . . 1 . . . . Hauler Manifests 1 | . 1 . . . . . . . . . . . . Zone Layout 8 | . 3 . . . . . 1 1 2 1 . . . Derelict Proto ID Bank 1 | . . . . . 1 . . . . . . . . Fabricator Hacks 10 | . . . . . . . . 3 5 . 2 . . Network Status 1 | . . . . . . . . 1 . . . . . Load Schematic 5 | . . . . . . . . 1 3 . 1 . . Build 4 | . . . . . . . . 1 2 . 1 . . Repair Station Hacks . | . . . . . . . . . . . . . . Recycling Unit Hacks . | . . . . . . . . . . . . . . Scanalyzer 3 | . . . . . . . . 3 . . . . . Insert Component 2 | . . . . . . . . 2 . . . . . Analyze 1 | . . . . . . . . 1 . . . . . Garrison Access Hacks 5 | . . . . . . . . . 3 . . . 2 Seal Access 5 | . . . . . . . . . 3 . . . 2 Unauthorized Hacks 18 | . 2 . 1 . . . 3 5 5 1 1 . . Terminals 18 | . 2 . 1 . . . 3 5 5 1 1 . . Assimilate 1 | . . . . . . . . 1 . . . . . Botnet 17 | . 2 . 1 . . . 3 4 5 1 1 . . Fabricators . | . . . . . . . . . . . . . . Repair Stations . | . . . . . . . . . . . . . . Recycling Units . | . . . . . . . . . . . . . . Scanalyzers . | . . . . . . . . . . . . . . Garrison Access . | . . . . . . . . . . . . . . Data Cores Recovered . | . . . . . . . . . . . . . . Used . | . . . . . . . . . . . . . . Hacking Detections 47 | . 7 . 2 . . . 4 10 14 3 2 2 3 Full Trace Events 7 | . 1 . . . . . . 1 3 1 1 . . Feedback Events . | . . . . . . . . . . . . . . Feedback Blocked . | . . . . . . . . . . . . . . Robot Schematics Acquired . | . . . . . . . . . . . . . . Robots Built . | . . . . . . . . . . . . . . Authchips . | . . . . . . . . . . . . . . Time . | . . . . . . . . . . . . . . Total Robot Build Rating . | . . . . . . . . . . . . . . Part Schematics Acquired 3 | . . . . . . . . 1 1 . 1 . . Parts Built 5 | . . . . . . . . 1 2 . 2 . . Authchips . | . . . . . . . . . . . . . . Time 349 | . . . . . . . . 134 190 . 25 . . Total Part Build Rating 16 | . . . . . . . . 4 10 . 2 . . Parts Repaired . | . . . . . . . . . . . . . . Time . | . . . . . . . . . . . . . . Parts Recycled . | . . . . . . . . . . . . . . Recycled Matter . | . . . . . . . . . . . . . . Retrieved Matter . | . . . . . . . . . . . . . . Retrieved Components . | . . . . . . . . . . . . . . Parts Scanalyzed 2 | . . . . . . . . 2 . . . . . Part Schematics Acquired 1 | . . . . . . . . 1 . . . . . Parts Damaged 2 | . . . . . . . . 2 . . . . . Bothacking | -11 -10 -10 -9 -9 -9 -8 -8 -7 -6 -5 -4 -3 -2 ------------ Run | Yrd Mat Min Mat Min Exi Min Mat Fac Fac Fac Fac Res Res Used RIF Installer . | . . . . . . . . . . . . . . Robots Hacked . | . . . . . . . . . . . . . . Non-combat . | . . . . . . . . . . . . . . Combat . | . . . . . . . . . . . . . . Robot Hacks Applied . | . . . . . . . . . . . . . . Relay Couplers Released . | . . . . . . . . . . . . . . Fabnet Peak Effective % . | . . . . . . . . . . . . . . Robots Rewired . | . . . . . . . . . . . . . . Allies Hacked . | . . . . . . . . . . . . . . Hacks Repelled . | . . . . . . . . . . . . . . Allies | -11 -10 -10 -9 -9 -9 -8 -8 -7 -6 -5 -4 -3 -2 -------- Run | Yrd Mat Min Mat Min Exi Min Mat Fac Fac Fac Fac Res Res Total Allies 4 | . . 1 . . . . . 1 2 . . . . Largest Group 2 | . . . 1 . . . . 1 2 . . . . Highest-Rated Group 62 | . . . 31 . . . . 26 62 . . . . Highest-Rated Ally 31 | . . . 31 . . . . 26 31 . . . . Total Orders . | . . . . . . . . . . . . . . Ally Attacks 30 | . . . 22 . . . . . 8 . . . . Total Damage 369 | . . . 208 . . . . . 161 . . . . Kills 3 | . . . 3 . . . . . . . . . . Allies Corrupted . | . . . . . . . . . . . . . . Allies Melted . | . . . . . . . . . . . . . . Intel | -11 -10 -10 -9 -9 -9 -8 -8 -7 -6 -5 -4 -3 -2 ------- Run | Yrd Mat Min Mat Min Exi Min Mat Fac Fac Fac Fac Res Res Robot Analysis Total 4 | . 1 . . . . . 3 . . . . . . Derelict Logs Recovered 3 | . . 1 . 2 . . . . . . . . . Drone Launches . | . . . . . . . . . . . . . . Drone Recoveries . | . . . . . . . . . . . . . . Exploration | -11 -10 -10 -9 -9 -9 -8 -8 -7 -6 -5 -4 -3 -2 ------------- Run | Yrd Mat Min Mat Min Exi Min Mat Fac Fac Fac Fac Res Res Turns Passed 8681 | 113 474 745 472 597 454 465 513 1907 968 132 185 481 1175 Spaces Moved 9428 | 77 367 663 270 553 474 389 306 1449 1626 279 242 863 1870 Core 109 | 1 . . . . . . . . . . . . 108 Treads 21 | . 12 . 9 . . . . . . . . . . Legs . | . . . . . . . . . . . . . . Wheels 4526 | 76 355 663 261 553 474 389 306 1449 . . . . . Hover . | . . . . . . . . . . . . . . Flight 4772 | . . . . . . . . . 1626 279 242 863 1762 Fastest Speed 35 | 50 90 95 95 95 95 95 110 110 39 39 39 39 35 Average Speed 72 | 90 101 95 99 95 95 109 146 111 39 39 39 41 43 Slowest Speed 240 | 100 160 95 240 95 95 110 155 155 50 39 39 42 50 Overloaded Moves . | . . . . . . . . . . . . . . Propulsion Burnouts . | . . . . . . . . . . . . . . Robots Hopped 38 | . . . . . . . . . 12 . 2 4 20 Cave-ins Triggered 1 | . . . . . . . . . . . . . 1 Exploration Rate (%) 48 | 3 68 97 31 96 92 85 26 31 44 11 10 31 53 Regions Visited 13 Branch Regions 4 Pre-discovered Areas . | . . . . . . . . . . . . . . Known Exits Taken 6 | . 1 . 1 . 1 . . . . 1 1 1 . Unknown Exits Taken 7 | 1 . 1 . 1 . 1 1 1 1 . . . . Scrap Searched 5 | . . 2 . 2 . 1 . . . . . . . Spaces Dug 488 | . 19 26 5 . . . 3 9 31 6 5 19 365 Terrain Destroyed 771 | . 55 33 15 . . 11 3 13 33 6 82 19 501 Melee 86 | . . . . . . . 3 3 25 5 5 19 26 Projectile 27 | . . 5 . . . . . 10 8 1 . . 3 AOE 658 | . 55 28 15 . . 11 . . . . 77 . 472 Terrain Rammed . | . . . . . . . . . . . . . . Walls Destroyed . | . . . . . . . . . . . . . . Machines Disabled . | . . . . . . . . . . . . . . Actions | -11 -10 -10 -9 -9 -9 -8 -8 -7 -6 -5 -4 -3 -2 --------- Run | Yrd Mat Min Mat Min Exi Min Mat Fac Fac Fac Fac Res Res Total 10706 | 106 443 723 412 622 480 421 357 1675 1862 291 310 938 2066 Wait 567 | 9 29 19 69 59 . 10 7 119 120 3 54 23 46 Move 9345 | 76 366 662 269 552 473 388 305 1448 1603 278 237 854 1834 Hop 31 | . . . . . . . . . 10 . 2 4 15 Pick Up 108 | 8 10 3 9 3 2 6 16 18 14 . . 6 13 Fast Attach 34 | 7 1 . 1 . . . 1 5 3 . . 5 11 Attach 41 | . 2 . 2 . . 1 3 4 4 2 3 4 16 Detach 20 | . 1 . . . . . 1 3 1 . . 2 12 Swap 102 | 1 9 16 16 4 . 6 7 11 13 1 3 5 10 Drop 96 | . 9 . 12 3 5 6 7 21 14 . . 6 13 Fire 166 | 5 16 23 32 1 . 4 5 33 19 1 6 1 20 Melee 144 | . . . 2 . . . 5 5 37 6 5 28 56 Ram 2 | . . . . . . . . . . . . . 2 Kick . | . . . . . . . . . . . . . . Crush . | . . . . . . . . . . . . . . Escape Stasis 50 | . . . . . . . . 8 24 . . . 18 Rewire . | . . . . . . . . . . . . . . Trap . | . . . . . . . . . . . . . . Miscellaneous . | . . . . . . . . . . . . . . Route ------- -11/Scrapyard -10/Materials (discovered 3 exits: *Mat x2 / *Min) -10/Mines (discovered 2 exits: *Mat x2) -9/Materials -9/Mines (discovered 3 exits: *Mat x2 / *Exi) -9/Exiles -8/Mines -8/Materials (discovered 2 exits: *Fac / [*Sto]) -7/Factory (discovered 3 exits: *Fac / *Low x2) -6/Factory (discovered 3 exits: *Fac / Low x2) -5/Factory (discovered 6 exits: *Fac x4 / Upp x2) -4/Factory (discovered 4 exits: *Res x4) -3/Research (discovered 3 exits: *Res x3) -2/Research (discovered 4 exits: Acc x3 / [*Qua]) History --------- Turn | Location | Event 41 | -11/Scrapyard | Discovered new exit (range 15) 114 | -11/Scrapyard | Entered Materials 338 | -10/Materials | Build established: Mutant 344 | -10/Materials | Discovered new exit (range 7) 360 | -10/Materials | Identified exit to Mines 565 | -10/Materials | Discovered new exit (range 16) 588 | -10/Materials | Entered Mines 758 | -10/Mines | Received a Rocket Launcher from a helpful Derelict 965 | -10/Mines | Found a damaged Exp. Sensor Array with a note attached 967 | -10/Mines | Found Prototype Device 985 | -10/Mines | Identified Exp. Sensor Array 1309 | -10/Mines | Discovered new exit (range 8) 1325 | -10/Mines | Discovered new exit (range 7) 1326 | -10/Mines | Met a Derelict testing a Signal Generator 1332 | -10/Mines | Found Signal Generator 1333 | -10/Mines | Entered Materials 1333 | -9/Materials | Accompanied by 1 ally 1333 | -9/Materials | Evolved 2 slots: Utility x2 1334 | -9/Materials | Identified exit to Mines 1659 | -9/Materials | Destroyed 7 combat bots 1805 | -9/Materials | Entered Mines 1820 | -9/Mines | Found a hidden stash of uninstalled traps 1839 | -9/Mines | Met a Derelict bent on vengeance 1907 | -9/Mines | Learned Materials stockpile data 2087 | -9/Mines | Discovered new exit (range 14) 2162 | -9/Mines | Deemed a non-threat by the Exiles lab entrance 2162 | -9/Mines | Discovered new exit (range 5) 2189 | -9/Mines | Learned Materials interactive machine intel 2192 | -9/Mines | Build established: Scavenger-Mutant 2249 | -9/Mines | Discovered new exit (range 5) 2402 | -9/Mines | Entered Exiles 2403 | -9/Exiles | Identified exit to Mines 2426 | -9/Exiles | Met 8R-AWN 2440 | -9/Exiles | Met EX-HEX 2485 | -9/Exiles | Met EX-DEC 2530 | -9/Exiles | Met EX-BIN 2544 | -9/Exiles | Aligned with FarCom system 2545 | -9/Exiles | Given EX-Vault access code 2586 | -9/Exiles | Opened EX-Vault 2595 | -9/Exiles | Found Flying Fortress v7 2618 | -9/Exiles | Warned to stay clear of 0b10 Research branches 2681 | -9/Exiles | Visited The Gauntlet 2856 | -9/Exiles | Left Exiles lab with Flying Fortress v7 2856 | -9/Exiles | Entered Mines 3310 | -8/Mines | Discovered new exit (range 5) 3321 | -8/Mines | Entered Materials 3321 | -8/Materials | Evolved 2 slots: Utility x2 3323 | -8/Materials | Loaded intel: 19 interactive machine locations 3698 | -8/Materials | Discovered new exit (range 16) 3746 | -8/Materials | Met 7R-MNS 3820 | -8/Materials | Discovered new exit (range 10) 3834 | -8/Materials | Entered Factory 3834 | -7/Factory | Evolved 2 slots: Propulsion x2 3835 | -7/Factory | Caught up to 7R-MNS 4260 | -7/Factory | Found Prototype Launcher 4260 | -7/Factory | Identified Rocket Array 4265 | -7/Factory | Found Rocket Array 5268 | -7/Factory | Build established: Hacker-Mutant 5275 | -7/Factory | Fabricated Cld. VTOL Module (x1) 5559 | -7/Factory | Discovered new exit (range 13) 5582 | -7/Factory | Identified exit to Lower Caves 5672 | -7/Factory | Discovered new exit (range 8) 5741 | -7/Factory | Entered another Factory area 5741 | -6/Factory | Evolved 2 slots: Propulsion x1, Utility x1 5742 | -6/Factory | Caught up to 7R-MNS 5772 | -6/Factory | Identified exit to Lower Caves 6011 | -6/Factory | Fabricated Imp. Hacking Suite? 6203 | -6/Factory | Fabricated Imp. Hacking Suite? 6431 | -6/Factory | Allied Derelicts emerged from ambush trap array 6705 | -6/Factory | Discovered new exit (range 9) 6709 | -6/Factory | Entered another Factory area 6709 | -5/Factory | Evolved 2 slots: Utility x2 6710 | -5/Factory | Caught up to 7R-MNS 6732 | -5/Factory | Identified exit to Upper Caves 6732 | -5/Factory | Identified exit to Factory 6841 | -5/Factory | Entered another Factory area 6841 | -4/Factory | Evolved 2 slots: Utility x2 6859 | -4/Factory | Identified exit to Research 6937 | -4/Factory | Fabricated Structural Scanner? 7026 | -4/Factory | Entered Research 7026 | -3/Research | Evolved 2 slots: Power x1, Utility x1 7038 | -3/Research | Found Prototype Processor 7038 | -3/Research | Identified Spectral Analyzer 7338 | -3/Research | Spotted B-86 Titan 7433 | -3/Research | Spotted B-86 Titan 7457 | -3/Research | Identified exit to Research 7507 | -3/Research | Entered another Research area 7507 | -2/Research | Evolved 2 slots: Propulsion x1, Utility x1 7521 | -2/Research | Lost 4 parts (4u) 7687 | -2/Research | Found Prototype Processor 7687 | -2/Research | Identified Exp. Melee Analysis Suite 7750 | -2/Research | Found Prototype Device 7750 | -2/Research | Identified Exp. Transmission Jammer 7768 | -2/Research | Found Adv. Force Booster 7817 | -2/Research | Build established: Wizard-Mutant 7990 | -2/Research | Identified exit to Access 8167 | -2/Research | Crushed by falling debris 8168 | -2/Research | System corruption reached 10% 8224 | -2/Research | Found Prototype Device 8224 | -2/Research | Identified Adv. EM Disruption Field 8520 | -2/Research | Lost 3 parts (1p1n1u) 8533 | -2/Research | Spotted B-90 Cyclops 8538 | -2/Research | Discovered new exit (range 10) 8617 | -2/Research | Core integrity fell below 50% 8633 | -2/Research | Spotted B-90 Cyclops 8644 | -2/Research | Lost 7 parts (1p3n3u) 8676 | -2/Research | Core integrity fell below 20% 8682 | -2/Research | Destroyed by G-73 Enforcer with Phase Gun Last Messages --------------- 08672_ Stasis field depleted. 08672_ Slammed into B-74 Champion. 08674_ Imp. System Shield destroyed. 08674_ System corrupted by crushing effect (+3). 08674_ Knocked back. 08674_ Triggered Stasis Trap. 08674_ A bubble of rippling energy engulfs the area. 08674_ Field strength at 94. 08674_ Field strength at 88. 08675_ Imp. Core Shielding destroyed. 08675_ Field strength at 70. 08676_ Field strength at 64. 08676_ Penetrated by Slug. 08677_ System corrupted: Matter fused (-8). 08677_ Field strength at 26. 08678_ Field strength at 8. 08679_ Field strength at 2. 08679_ Stasis field depleted. 08679_ Penetrated by Slug. Map ----- +----------------------------------------------------+ | ???????????????????????# #??????? | | ???????????????????????+ +??????? | | ???????????????????????# #??????? | | ?????????# ????????????# h #??????? | | ?????????# ########## ######## | | ?????????# g A | | ?????????# g | | ?????????# g !! | | ?????????# g | | ?????????############### ######+########## ?? | | ???????????????????????# #????????????????????? | | ???????????????????????# #????????????????????? | | ???????????????????????# #????????????????????? | | ???????????????????????# #????????????????????? | | ??????????????######???# #????????????????????? | | ??????????????# ??# #????????????????????? | | ??????????????#? ?# ^ #????????????????????? | | ??????????????# # ^ #????????????????????? | | ??????????????# """ # #????????????????????? | | ??????????????# """ + #????????????????????? | | ??????????????# """ #g b #????????????????????? | | ??????????????# # g #????????????????????? | | ??????????Y???+ ?# #????????????????????? | | ??????????????# ??# k #????????????????????? | | ??????????????######???# #????????????????????? | | ???????????????????????# @ #????????????????????? | | ???????????????????????#g +????????????????????? | | ?????????????????????? #????????????????????? | | ??????????????